fUSD/lending_fUSD_20250610
["ID","MTS","AMOUNT","RATE_DAILY","PERIOD"]
[365291151,1749582642322,-200.0,0.00019864,2]
[365291152,1749582642333,-5800.0,0.00019875,2]
[365291153,1749582642345,-29156.28420297,0.00019877,3]
[365291154,1749582642356,-362190.10873722,0.00019877,3]
[365291157,1749582642378,-1354.73479995,0.00019877,3]
[365291159,1749582642391,-512.98460441,0.00019877,3]
[365291162,1749582642404,-415.8862734,0.00019877,3]
[365291164,1749582642417,-10206.77204861,0.00019877,3]
[365291166,1749582642434,-27337.7,0.00019877,3]
[365291173,1749582643361,-490.0,0.00016438,2]
[365291174,1749582643372,-480.0,0.00016438,2]
[365291175,1749582643382,-55.4498009,0.00016602,2]
[365291176,1749582643452,-333.2901991,0.00016602,2]
[365291177,1749582643463,-2500.0,0.0001831,2]
[365291178,1749582643475,-981226.7098021,0.00019877,3]
[365291179,1749582643561,-488.87649113,0.0001879,2]
[365291185,1749582646280,-480.0,0.00016438,2]
[365291186,1749582646291,-576.24,0.00016438,2]
[365291187,1749582646303,-440.0,0.00016438,2]
[365291188,1749582646314,-11.12350887,0.0001879,2]
[365291189,1749582646325,-877.09636035,0.00019178,2]
[365291190,1749582646336,-877.09636035,0.00019178,2]
[365291191,1749582646346,-877.09636035,0.00019178,2]
[365291192,1749582646358,-877.09636035,0.00019178,2]
[365291193,1749582646368,-877.09636035,0.00019178,2]
[365291194,1749582646379,-877.09636035,0.00019178,2]
[365291195,1749582646390,-877.09636035,0.00019178,2]
[365291196,1749582646401,-877.09636035,0.00019178,2]
[365291197,1749582646411,-877.09636035,0.00019178,2]
[365291198,1749582646425,-877.09636035,0.00019178,2]
[365291199,1749582646437,-877.09636035,0.00019178,2]
[365291200,1749582646447,-877.09636035,0.00019178,2]
[365291201,1749582646458,-877.09636035,0.00019178,2]
[365291202,1749582646470,-877.09636035,0.00019178,2]
[365291203,1749582646481,-877.09636035,0.00019178,2]
[365291204,1749582646492,-877.09636035,0.00019178,2]
[365291205,1749582646503,-877.09636035,0.00019178,2]
[365291206,1749582646516,-877.09636035,0.00019178,2]
[365291207,1749582646526,-877.09636035,0.00019178,2]
[365291208,1749582646537,-877.09636035,0.00019178,2]
[365291209,1749582646548,-877.09636035,0.00019178,2]
[365291210,1749582646558,-877.09636035,0.00019178,2]
[365291211,1749582646569,-877.09636035,0.00019178,2]
[365291212,1749582646579,-877.09636035,0.00019178,2]
[365291213,1749582646590,-877.09636035,0.00019178,2]
[365291214,1749582646600,-877.09636035,0.00019178,2]
[365291215,1749582646611,-877.09636035,0.00019178,2]
[365291216,1749582646621,-877.09636035,0.00019178,2]
[365291217,1749582646632,-877.09636035,0.00019178,2]
[365291218,1749582646643,-877.09636035,0.00019178,2]
[365291219,1749582646655,-877.09636035,0.00019178,2]
[365291220,1749582646665,-877.09636035,0.00019178,2]
[365291221,1749582646677,-877.09636035,0.00019178,2]
[365291222,1749582646688,-877.09636035,0.00019178,2]
[365291223,1749582646699,-877.09636035,0.00019178,2]
[365291224,1749582646710,-877.09636035,0.00019178,2]
[365291225,1749582646720,-877.09636035,0.00019178,2]
[365291226,1749582646731,-877.09636035,0.00019178,2]
[365291227,1749582646742,-877.09636035,0.00019178,2]
[365291228,1749582646759,-877.09636035,0.00019178,2]
[365291229,1749582646773,-877.09636035,0.00019178,2]
[365291230,1749582646785,-877.09636035,0.00019178,2]
[365291231,1749582646798,-877.09636035,0.00019178,2]
[365291232,1749582646809,-877.09636035,0.00019178,2]
[365291233,1749582646821,-877.09636035,0.00019178,2]
[365291234,1749582646833,-877.09636035,0.00019178,2]
[365291235,1749582646844,-500.0,0.00019699,2]
[365291236,1749582646856,-5800.0,0.00019866,2]
[365291237,1749582646867,-500.0,0.00019877,2]
[365291238,1749582646880,-500.0,0.00019877,2]
[365291239,1749582646891,-500.0,0.00019877,2]
[365291240,1749582646904,-500.0,0.00019877,2]
[365291241,1749582646916,-500.0,0.00019877,2]
[365291242,1749582646927,-500.0,0.00019877,2]
[365291243,1749582646938,-500.0,0.00019877,2]
[365291244,1749582646949,-3463.01268903,0.00019877,3]
[365291245,1749582646982,-877.09636035,0.00019178,2]
[365291246,1749582646994,-877.09636035,0.00019178,2]
[365291247,1749582647005,-500.0,0.00019877,2]
[365291248,1749582647016,-220045.35140588,0.00019877,3]
[365291249,1749582647042,-245.46707454,0.00019877,3]
[365291250,1749582647084,-348.95351678,0.00019178,2]
[365291251,1749582647112,-376.50267413,0.00019178,2]
[365291252,1749582647133,-151.64016944,0.00019178,2]
[365291253,1749582647144,-877.09636035,0.00019178,2]
[365291254,1749582647157,-325.24147019,0.00019178,2]
[365291255,1749582656796,500.0,0.00016164,2]
[365291256,1749582677550,162.371147,0.00016338,2]
[365291257,1749582689779,208.11,0.00013699,2]
[365291260,1749582851575,201.0,0.00015665,2]
[365291261,1749583062149,540.21,0.0002,30]
[365291262,1749583087136,150.0,0.0002,30]
[365291263,1749583102014,150.0,0.0002,30]
[365291264,1749583102483,150.0,0.0002,30]
[365291265,1749583105265,150.0,0.0002,30]
[365291266,1749583109494,-201.0,0.00016299,2]
[365291267,1749583109792,-1200.0,0.00016437,2]
[365291268,1749583109820,-270.0,0.00016437,2]
[365291269,1749583109845,-480.0,0.00016438,2]
[365291270,1749583109870,-616.33,0.00016438,2]
[365291271,1749583109895,-480.0,0.00016438,2]
[365291272,1749583109918,-480.0,0.00016438,2]
[365291273,1749583109942,-480.0,0.00016438,2]
[365291274,1749583109965,-527.11698964,0.00016438,2]
[365291275,1749583109987,-460.0,0.00016438,2]
[365291276,1749583110011,-480.0,0.00016438,2]
[365291277,1749583110034,-480.0,0.00016438,2]
[365291278,1749583110056,-480.0,0.00016438,2]
[365291279,1749583110085,-480.0,0.00016438,2]
[365291280,1749583110114,-490.0,0.00016438,2]
[365291281,1749583110139,-480.0,0.00016438,2]
[365291282,1749583110167,-460.0,0.00016438,2]
[365291283,1749583110190,-480.0,0.00016438,2]
[365291284,1749583110214,-480.0,0.00016438,2]
[365291285,1749583110236,-480.0,0.00016438,2]
[365291286,1749583110259,-480.0,0.00016438,2]
[365291287,1749583110282,-460.0,0.00016438,2]
[365291288,1749583110305,-480.0,0.00016438,2]
[365291289,1749583110328,-490.0,0.00016438,2]
[365291290,1749583110350,-480.0,0.00016438,2]
[365291291,1749583110373,-480.0,0.00016438,2]
[365291292,1749583110397,-480.0,0.00016438,2]
[365291293,1749583110420,-480.0,0.00016438,2]
[365291294,1749583110446,-480.0,0.00016438,2]
[365291295,1749583110475,-480.0,0.00016438,2]
[365291296,1749583110500,-480.0,0.00016438,2]
[365291297,1749583110524,-490.0,0.00016438,2]
[365291298,1749583110548,-490.0,0.00016438,2]
[365291299,1749583110573,-490.0,0.00016438,2]
[365291300,1749583110596,-490.0,0.00016438,2]
[365291301,1749583110619,-480.0,0.00016438,2]
[365291302,1749583110645,-460.0,0.00016438,2]
[365291303,1749583110668,-480.0,0.00016438,2]
[365291304,1749583110692,-490.0,0.00016438,2]
[365291305,1749583110715,-490.0,0.00016438,2]
[365291306,1749583110739,-490.0,0.00016438,2]
[365291307,1749583110764,-480.0,0.00016438,2]
[365291308,1749583110788,-490.0,0.00016438,2]
[365291309,1749583110811,-490.0,0.00016438,2]
[365291310,1749583110834,-490.0,0.00016438,2]
[365291311,1749583110858,-4817.217922,0.00016438,2]
[365291312,1749583110882,-158.245676,0.00016438,2]
[365291313,1749583110908,-530.85745625,0.00016438,2]
[365291314,1749583110932,-480.0,0.00016438,2]
[365291315,1749583110956,-480.0,0.00016438,2]
[365291316,1749583110979,-490.0,0.00016438,2]
[365291317,1749583111003,-490.0,0.00016438,2]
[365291318,1749583111025,-490.0,0.00016438,2]
[365291319,1749583111048,-490.0,0.00016438,2]
[365291320,1749583111072,-588.39337879,0.00016438,2]
[365291321,1749583111095,-490.0,0.00016438,2]
[365291322,1749583111118,-490.0,0.00016438,2]
[365291323,1749583111143,-490.0,0.00016438,2]
[365291324,1749583111167,-490.0,0.00016438,2]
[365291325,1749583111191,-490.0,0.00016438,2]
[365291326,1749583111214,-480.0,0.00016438,2]
[365291327,1749583111236,-480.0,0.00016438,2]
[365291328,1749583111260,-490.0,0.00016438,2]
[365291329,1749583111284,-490.0,0.00016438,2]
[365291330,1749583111308,-490.0,0.00016438,2]
[365291331,1749583111332,-490.0,0.00016438,2]
[365291332,1749583111355,-505.32,0.00016438,2]
[365291333,1749583111378,-490.0,0.00016438,2]
[365291334,1749583111402,-490.0,0.00016438,2]
[365291335,1749583111426,-490.0,0.00016438,2]
[365291336,1749583111448,-480.0,0.00016438,2]
[365291337,1749583111472,-480.0,0.00016438,2]
[365291338,1749583111495,-480.0,0.00016438,2]
[365291339,1749583111517,-514.07423592,0.00016438,2]
[365291340,1749583111539,-480.0,0.00016438,2]
[365291341,1749583111563,-480.0,0.00016438,2]
[365291342,1749583111589,-490.0,0.00016438,2]
[365291343,1749583111613,-490.0,0.00016438,2]
[365291344,1749583111636,-480.0,0.00016438,2]
[365291345,1749583111662,-490.0,0.00016438,2]
[365291346,1749583111685,-480.0,0.00016438,2]
[365291347,1749583111708,-480.0,0.00016438,2]
[365291348,1749583111733,-490.0,0.00016438,2]
[365291349,1749583111758,-490.0,0.00016438,2]
[365291350,1749583111781,-480.0,0.00016438,2]
[365291351,1749583111804,-480.0,0.00016438,2]
[365291352,1749583111828,-480.0,0.00016438,2]
[365291353,1749583111854,-480.0,0.00016438,2]
[365291354,1749583111878,-490.0,0.00016438,2]
[365291355,1749583111903,-480.0,0.00016438,2]
[365291356,1749583111929,-490.0,0.00016438,2]
[365291357,1749583111953,-490.0,0.00016438,2]
[365291358,1749583111977,-490.0,0.00016438,2]
[365291359,1749583112001,-540.96,0.00016438,2]
[365291360,1749583112026,-534.66,0.00016438,2]
[365291361,1749583112052,-1486.53,0.00016438,2]
[365291362,1749583112076,-490.0,0.00016438,2]
[365291363,1749583112100,-490.0,0.00016438,2]
[365291364,1749583112124,-490.0,0.00016438,2]
[365291365,1749583112151,-480.0,0.00016438,2]
[365291366,1749583112175,-535.63,0.00016438,2]
[365291367,1749583112198,-490.0,0.00016438,2]
[365291368,1749583112221,-480.0,0.00016438,2]
[365291369,1749583112244,-490.0,0.00016438,2]
[365291370,1749583112266,-480.0,0.00016438,2]
[365291371,1749583112289,-490.0,0.00016438,2]
[365291372,1749583112312,-480.0,0.00016438,2]
[365291373,1749583112335,-467.95198328,0.00016438,2]
[365291374,1749583112358,-480.0,0.00016438,2]
[365291375,1749583112381,-480.0,0.00016438,2]
[365291376,1749583112404,-480.0,0.00016438,2]
[365291377,1749583112428,-480.0,0.00016438,2]
[365291378,1749583112452,-413.85106294,0.00016438,2]
[365291379,1749583112476,-490.0,0.00016438,2]
[365291380,1749583112500,-490.0,0.00016438,2]
[365291381,1749583112525,-490.0,0.00016438,2]
[365291382,1749583112549,-490.0,0.00016438,2]
[365291383,1749583112575,-490.0,0.00016438,2]
[365291384,1749583112600,-490.0,0.00016438,2]
[365291385,1749583112795,-490.0,0.00016438,2]
[365291386,1749583112818,-480.0,0.00016438,2]
[365291387,1749583112842,-515.8,0.00016438,2]
[365291388,1749583112864,-480.0,0.00016438,2]
[365291389,1749583112887,-490.0,0.00016438,2]
[365291390,1749583112911,-555.15,0.00016438,2]
[365291391,1749583112933,-490.0,0.00016438,2]
[365291392,1749583112958,-490.0,0.00016438,2]
[365291393,1749583112981,-480.0,0.00016438,2]
[365291394,1749583113004,-490.0,0.00016438,2]
[365291395,1749583113026,-492.54409978,0.00016438,2]
[365291396,1749583113050,-271.96889392,0.00016438,2]
[365291397,1749583113075,-490.0,0.00016438,2]
[365291398,1749583113099,-360.17517933,0.00016438,2]
[365291399,1749583113122,-490.0,0.00016438,2]
[365291400,1749583113147,-490.0,0.00016438,2]
[365291401,1749583113172,-490.0,0.00016438,2]
[365291402,1749583113197,-490.0,0.00016438,2]
[365291403,1749583113221,-629.3,0.00016438,2]
[365291404,1749583113248,-490.0,0.00016438,2]
[365291405,1749583113274,-571.35,0.00016438,2]
[365291406,1749583113299,-490.0,0.00016438,2]
[365291407,1749583113324,-1000.0,0.00016438,2]
[365291408,1749583113349,-490.0,0.00016438,2]
[365291409,1749583113373,-480.0,0.00016438,2]
[365291410,1749583113400,-480.0,0.00016438,2]
[365291411,1749583113423,-480.0,0.00016438,2]
[365291412,1749583113447,-480.0,0.00016438,2]
[365291413,1749583113470,-480.0,0.00016438,2]
[365291414,1749583113495,-480.0,0.00016438,2]
[365291415,1749583113519,-490.0,0.00016438,2]
[365291416,1749583113543,-480.0,0.00016438,2]
[365291417,1749583113567,-490.0,0.00016438,2]
[365291418,1749583113593,-480.0,0.00016438,2]
[365291419,1749583113620,-490.0,0.00016438,2]
[365291420,1749583113647,-486.23079991,0.00016438,2]
[365291421,1749583113672,-490.0,0.00016438,2]
[365291422,1749583113697,-490.0,0.00016438,2]
[365291423,1749583113719,-182.76266125,0.00016438,2]
[365291424,1749583113742,-490.0,0.00016438,2]
[365291425,1749583113766,-480.0,0.00016438,2]
[365291426,1749583113789,-480.0,0.00016438,2]
[365291427,1749583113812,-480.0,0.00016438,2]
[365291428,1749583113834,-480.0,0.00016438,2]
[365291429,1749583113858,-490.0,0.00016438,2]
[365291430,1749583113884,-490.0,0.00016438,2]
[365291431,1749583113909,-480.0,0.00016438,2]
[365291432,1749583113934,-600.0,0.0001652,4]
[365291433,1749583113960,-164.00241172,0.00016601,2]
[365291434,1749583113985,-488.6,0.00016602,2]
[365291435,1749583114009,-490.0,0.00016602,2]
[365291436,1749583114032,-165.69094058,0.00016602,2]
[365291437,1749583114056,-522.54,0.00016602,2]
[365291438,1749583114079,-630.74,0.00016602,2]
[365291439,1749583114102,-470.0,0.00016602,2]
[365291440,1749583114125,-490.0,0.00016602,2]
[365291441,1749583114150,-477.42246789,0.00016602,2]
[365291442,1749583114173,-349.59,0.00016602,2]
[365291443,1749583114197,-490.0,0.00016602,2]
[365291444,1749583114221,-490.0,0.00016602,2]
[365291445,1749583114245,-490.0,0.00016602,2]
[365291446,1749583114271,-490.0,0.00016602,2]
[365291447,1749583114296,-490.0,0.00016602,2]
[365291448,1749583114320,-490.0,0.00016602,2]
[365291449,1749583114345,-498.31,0.00016602,2]
[365291450,1749583114369,-490.0,0.00016602,2]
[365291451,1749583114393,-480.0,0.00016602,2]
[365291452,1749583114416,-470.0,0.00016602,2]
[365291453,1749583114441,-490.0,0.00016602,2]
[365291454,1749583114464,-227.40146731,0.00016602,2]
[365291455,1749583114489,-247.82,0.00016602,2]
[365291456,1749583114514,-490.0,0.00016602,2]
[365291457,1749583114538,-293.58693357,0.00016602,2]
[365291458,1749583114564,-490.0,0.00016602,2]
[365291459,1749583114591,-490.0,0.00016602,2]
[365291460,1749583114616,-470.0,0.00016602,2]
[365291461,1749583114641,-490.0,0.00016602,2]
[365291462,1749583114664,-226.32,0.00016602,2]
[365291463,1749583114688,-1486.53,0.00016602,2]
[365291464,1749583114711,-261.37,0.00016602,2]
[365291465,1749583114736,-518.46,0.00016602,2]
[365291466,1749583114760,-490.0,0.00016602,2]
[365291467,1749583114783,-470.0,0.00016602,2]
[365291468,1749583114807,-490.0,0.00016602,2]
[365291469,1749583114831,-181.17,0.00016602,2]
[365291470,1749583114854,-490.0,0.00016602,2]
[365291471,1749583114878,-470.0,0.00016602,2]
[365291472,1749583114902,-490.0,0.00016602,2]
[365291473,1749583114927,-490.0,0.00016602,2]
[365291474,1749583114952,-490.0,0.00016602,2]
[365291475,1749583114975,-490.0,0.00016602,2]
[365291476,1749583114998,-490.0,0.00016602,2]
[365291477,1749583115021,-266.86560231,0.00016602,2]
[365291478,1749583115047,-490.0,0.00016602,2]
[365291479,1749583115069,-154.1,0.00016602,2]
[365291480,1749583115092,-313.90675812,0.00016602,2]
[365291481,1749583115114,-273.38,0.00016602,2]
[365291482,1749583115137,-490.0,0.00016602,2]
[365291483,1749583115161,-490.0,0.00016602,2]
[365291484,1749583115184,-392.84,0.00016602,2]
[365291485,1749583115208,-490.0,0.00016602,2]
[365291486,1749583115231,-319.82402049,0.00016602,2]
[365291487,1749583115253,-1000.0,0.00016602,2]
[365291488,1749583115276,-490.0,0.00016602,2]
[365291489,1749583115300,-272.43,0.00016602,2]
[365291490,1749583115322,-166.7,0.00016602,2]
[365291491,1749583115344,-490.0,0.00016602,2]
[365291492,1749583115367,-490.0,0.00016602,2]
[365291493,1749583115390,-490.0,0.00016602,2]
[365291494,1749583115413,-209.75,0.00016602,2]
[365291495,1749583115436,-490.0,0.00016602,2]
[365291496,1749583115459,-490.0,0.00016602,2]
[365291497,1749583115482,-490.0,0.00016767,2]
[365291498,1749583115504,-490.0,0.00016767,2]
[365291499,1749583115526,-490.0,0.00016767,2]
[365291500,1749583115549,-490.0,0.00016767,2]
[365291501,1749583115771,-490.0,0.00016767,2]
[365291502,1749583115798,-490.0,0.00016767,2]
[365291503,1749583115823,-490.0,0.00016767,2]
[365291504,1749583115848,-490.0,0.00016767,2]
[365291505,1749583115873,-490.0,0.00016767,2]
[365291506,1749583115898,-490.0,0.00016767,2]
[365291507,1749583115923,-490.0,0.00016767,2]
[365291508,1749583115948,-281.1,0.00016767,2]
[365291509,1749583115974,-467.63,0.00016767,2]
[365291510,1749583115999,-1486.53,0.00016767,2]
[365291511,1749583116024,-490.0,0.00016767,2]
[365291512,1749583116050,-490.0,0.00016767,2]
[365291513,1749583116075,-525.47,0.00016767,2]
[365291514,1749583116099,-449.43,0.00016767,2]
[365291515,1749583116124,-569.25,0.00016767,2]
[365291516,1749583116151,-490.0,0.00016767,2]
[365291517,1749583116178,-490.0,0.00016767,2]
[365291518,1749583116204,-490.0,0.00016767,2]
[365291519,1749583116231,-490.0,0.00016767,2]
[365291520,1749583116256,-490.0,0.00016767,2]
[365291521,1749583116282,-490.0,0.00016767,2]
[365291522,1749583116309,-490.0,0.00016767,2]
[365291523,1749583116333,-968.95,0.00016767,2]
[365291524,1749583116358,-275.9,0.00016767,2]
[365291525,1749583116383,-490.0,0.00016767,2]
[365291526,1749583116408,-490.0,0.00016767,2]
[365291527,1749583116432,-490.0,0.00016767,2]
[365291528,1749583116456,-490.0,0.00016767,2]
[365291529,1749583116482,-225.99,0.00016767,2]
[365291530,1749583116506,-212.38,0.00016931,2]
[365291531,1749583116530,-490.0,0.00016931,2]
[365291532,1749583116554,-490.0,0.00016931,2]
[365291533,1749583116582,-490.0,0.00016931,2]
[365291534,1749583116606,-490.0,0.00016931,2]
[365291535,1749583116632,-490.0,0.00016931,2]
[365291536,1749583116660,-490.0,0.00016931,2]
[365291537,1749583116684,-490.0,0.00016931,2]
[365291538,1749583116708,-605.48,0.00016931,2]
[365291539,1749583116732,-490.0,0.00016931,2]
[365291540,1749583116758,-490.0,0.00016931,2]
[365291541,1749583116783,-1486.53,0.00016931,2]
[365291542,1749583116808,-490.0,0.00016931,2]
[365291543,1749583116833,-490.0,0.00016931,2]
[365291544,1749583116860,-388.61,0.00016931,2]
[365291545,1749583116886,-569.52,0.00016931,2]
[365291546,1749583116915,-490.0,0.00016931,2]
[365291547,1749583116942,-490.0,0.00016931,2]
[365291548,1749583116967,-490.0,0.00016931,2]
[365291549,1749583116992,-490.0,0.00016931,2]
[365291550,1749583117019,-490.0,0.00016931,2]
[365291551,1749583117044,-490.0,0.00016931,2]
[365291552,1749583117068,-490.0,0.00016931,2]
[365291553,1749583117092,-486.89016422,0.00016931,2]
[365291554,1749583117116,-490.0,0.00016931,2]
[365291555,1749583117142,-201.0,0.00016932,3]
[365291556,1749583117166,-530.41,0.00017095,2]
[365291557,1749583117189,-490.0,0.00017095,2]
[365291558,1749583117212,-490.0,0.00017095,2]
[365291559,1749583117235,-311.33,0.00017095,2]
[365291560,1749583117258,-490.0,0.00017095,2]
[365291561,1749583117281,-490.0,0.00017095,2]
[365291562,1749583117304,-490.0,0.00017095,2]
[365291563,1749583117327,-284.82,0.00017095,2]
[365291564,1749583117349,-490.0,0.00017095,2]
[365291565,1749583117372,-1486.53,0.00017095,2]
[365291566,1749583117397,-490.0,0.00017095,2]
[365291567,1749583117421,-490.0,0.00017095,2]
[365291568,1749583117445,-490.0,0.00017095,2]
[365291569,1749583117470,-490.0,0.00017095,2]
[365291570,1749583117493,-191.85,0.00017095,2]
[365291571,1749583117518,-490.0,0.00017095,2]
[365291572,1749583117543,-490.0,0.00017095,2]
[365291573,1749583117570,-496.92,0.00017095,2]
[365291574,1749583117593,-490.0,0.00017095,2]
[365291575,1749583117617,-490.0,0.00017095,2]
[365291576,1749583117643,-4578.0062,0.0001716,2]
[365291577,1749583117675,-226.27503392,0.000172,2]
[365291578,1749583117699,-490.0,0.0001726,2]
[365291579,1749583117722,-261.51,0.0001726,2]
[365291580,1749583117746,-490.0,0.0001726,2]
[365291581,1749583117769,-490.0,0.0001726,2]
[365291582,1749583117793,-490.0,0.0001726,2]
[365291583,1749583117816,-1486.53,0.0001726,2]
[365291584,1749583117840,-490.0,0.0001726,2]
[365291585,1749583117865,-490.0,0.0001726,2]
[365291586,1749583117890,-490.0,0.0001726,2]
[365291587,1749583117918,-490.0,0.0001726,2]
[365291588,1749583117942,-490.0,0.0001726,2]
[365291589,1749583117968,-490.0,0.0001726,2]
[365291590,1749583117992,-490.0,0.0001726,2]
[365291591,1749583118017,-490.0,0.0001726,2]
[365291592,1749583118040,-833.29909032,0.00017306,2]
[365291593,1749583118064,-755.58323841,0.00017324,2]
[365291594,1749583118094,-226.27503392,0.000174,2]
[365291595,1749583118117,-490.0,0.00017424,2]
[365291596,1749583118141,-490.0,0.00017424,2]
[365291597,1749583118166,-162.77,0.00017424,2]
[365291598,1749583118189,-490.0,0.00017424,2]
[365291599,1749583118212,-1486.53,0.00017424,2]
[365291600,1749583118235,-490.0,0.00017424,2]
[365291601,1749583118259,-490.0,0.00017424,2]
[365291602,1749583118283,-490.0,0.00017424,2]
[365291603,1749583118308,-490.0,0.00017424,2]
[365291604,1749583118331,-490.0,0.00017424,2]
[365291605,1749583118357,-490.0,0.00017424,2]
[365291606,1749583118379,-490.0,0.00017424,2]
[365291607,1749583118401,-490.0,0.00017424,2]
[365291608,1749583118843,490.0,0.00016438,2]
[365291609,1749583118882,172.33,0.00016602,2]
[365291610,1749583118997,526.49,0.00016438,2]
[365291611,1749583119063,480.0,0.00016438,2]
[365291612,1749583119121,480.0,0.00016438,2]
[365291613,1749583119224,490.0,0.00016438,2]
[365291614,1749583119265,405.14,0.00016602,2]
[365291615,1749583119297,480.0,0.00016438,2]
[365291616,1749583119349,480.0,0.00016438,2]
[365291617,1749583119385,480.0,0.00016438,2]
[365291618,1749583119817,480.0,0.00016438,2]
[365291619,1749583122272,628.96,0.00016438,2]
[365291620,1749583122608,150.0,0.000175,2]
[365291621,1749583122743,480.0,0.00016438,2]
[365291622,1749583123437,480.0,0.00016438,2]
[365291623,1749583124721,420.74,0.00016438,2]
[365291624,1749583124950,480.0,0.00016438,2]
[365291625,1749583127912,480.0,0.00016438,2]
[365291626,1749583128776,480.0,0.00016438,2]
[365291627,1749583129981,490.0,0.00016438,2]
[365291628,1749583130041,490.0,0.00016602,2]
[365291629,1749583130301,490.0,0.00016767,2]
[365291630,1749583130573,490.0,0.00016931,2]
[365291631,1749583130824,265.83,0.00017095,2]
[365291632,1749583131004,490.0,0.00016438,2]
[365291633,1749583131259,162.77,0.00016602,2]
[365291634,1749583134057,1000.0,0.00016438,2]
[365291635,1749583136055,480.0,0.00016438,2]
[365291636,1749583136087,480.0,0.00016438,2]
[365291637,1749583142185,480.0,0.00016438,2]
[365291638,1749583145328,480.0,0.00016438,2]
[365291639,1749583147377,480.0,0.00016438,2]
[365291640,1749583149139,150.0,0.0002,30]
[365291641,1749583149361,490.0,0.00016438,2]
[365291642,1749583149547,284.82,0.00016438,2]
[365291643,1749583150000,553.53,0.00016602,2]
[365291644,1749583150562,150.2311666,0.0002,30]
[365291645,1749583151222,480.0,0.00016438,2]
[365291646,1749583152072,539.3,0.00016438,2]
[365291647,1749583153130,555.85316177,0.00038521,120]
[365291648,1749583156083,549.52,0.00016438,2]
[365291649,1749583157708,480.0,0.00016438,2]
[365291650,1749583159412,480.0,0.00016438,2]
[365291651,1749583160205,539.98,0.00016438,2]
[365291652,1749583161454,150.0,0.0002,30]
[365291653,1749583162938,480.0,0.00016438,2]
[365291654,1749583163179,150.0,0.0002,30]
[365291655,1749583164965,490.0,0.00016438,2]
[365291656,1749583165203,490.0,0.00016602,2]
[365291657,1749583165455,490.0,0.00016767,2]
[365291658,1749583165739,490.0,0.00016931,2]
[365291659,1749583165907,480.0,0.00016438,2]
[365291660,1749583166024,486.08,0.00017095,2]
[365291661,1749583166525,480.0,0.00016438,2]
[365291662,1749583168291,480.0,0.00016438,2]
[365291663,1749583169944,490.0,0.00016438,2]
[365291664,1749583170199,111.19529821,0.00016602,2]
[365291665,1749583170226,378.80470179,0.00016602,2]
[365291666,1749583170481,490.0,0.00016767,2]
[365291667,1749583170759,436.65335219,0.00016931,2]
[365291668,1749583172856,490.0,0.00016438,2]
[365291669,1749583173448,480.0,0.00016438,2]
[365291670,1749583173479,490.0,0.00016602,2]